fUSD/lending_fUSD_20240113
["ID","MTS","AMOUNT","RATE_DAILY","PERIOD"]
[311495299,1705164467569,-1700.0,0.000222,2]
[311495300,1705164468423,-2000.0,0.000222,2]
[311495301,1705164468994,-1811.98011607,0.000222,2]
[311495302,1705164469019,-188.01988393,0.00022225,2]
[311495303,1705164469416,-1647.06462949,0.00022225,2]
[311495304,1705164469439,-352.93537051,0.00022242,2]
[311495305,1705164469785,-2000.0,0.00022242,2]
[311495306,1705164470242,-774.19153734,0.00022242,2]
[311495307,1705164470265,-1225.80846266,0.00022247,2]
[311495308,1705164470692,-348.54945311,0.00022247,2]
[311495309,1705164470714,-896.57742518,0.00022247,2]
[311495310,1705164470739,-221.71463966,0.00022249,2]
[311495311,1705164470760,-471.53335445,0.00022254,2]
[311495312,1705164470780,-61.6251276,0.00022255,2]
[311495313,1705164471132,-248.67182669,0.00022255,2]
[311495314,1705164471154,-473.8673768,0.00022256,2]
[311495315,1705164471174,-156.32004511,0.00022256,2]
[311495316,1705164471195,-185.51535097,0.00022256,2]
[311495317,1705164471217,-187.8791669,0.00022256,2]
[311495318,1705164471238,-340.32840086,0.00022256,2]
[311495319,1705164471259,-202.24288995,0.00022256,2]
[311495320,1705164471280,-205.17494272,0.00022256,2]
[311495321,1705164471816,-233.48588533,0.00022256,2]
[311495322,1705164471838,-500.0,0.00022256,2]
[311495323,1705164471860,-500.0,0.00022256,2]
[311495324,1705164471881,-500.0,0.00022256,2]
[311495325,1705164471902,-266.51411467,0.00022256,2]
[311495326,1705164472040,-233.48588533,0.00022256,2]
[311495327,1705164472061,-500.0,0.00022256,2]
[311495328,1705164472082,-500.0,0.00022256,2]
[311495329,1705164472103,-500.0,0.00022256,2]
[311495330,1705164472473,-266.51411467,0.00022256,2]
[311495331,1705164473842,-233.48588533,0.00022256,2]
[311495332,1705164473865,-500.0,0.00022256,2]
[311495333,1705164473889,-1266.51411467,0.00022256,2]
[311495334,1705164474277,-2000.0,0.00022256,2]
[311495335,1705164474762,-48.99588533,0.00022256,2]
[311495336,1705164474785,-1951.00411467,0.00022256,2]
[311495337,1705164475216,-1364.50588533,0.00022256,2]
[311495338,1705164475239,-635.49411467,0.00022256,2]
[311495339,1705164475597,-2000.0,0.00022256,2]
[311495340,1705164483661,4482.2002,0.00022157,2]
[311495341,1705164489889,-680.01588533,0.00022256,2]
[311495342,1705164489913,-500.0,0.00022256,2]
[311495343,1705164489936,-500.0,0.00022256,2]
[311495344,1705164489961,-319.98411467,0.00022256,2]
[311495345,1705164490180,-180.01588533,0.00022256,2]
[311495346,1705164490201,-500.0,0.00022256,2]
[311495347,1705164490222,-500.0,0.00022256,2]
[311495348,1705164490243,-500.0,0.00022256,2]
[311495349,1705164490264,-319.98411467,0.00022256,2]
[311495350,1705164490649,-180.01588533,0.00022256,2]
[311495351,1705164490670,-500.0,0.00022256,2]
[311495352,1705164490692,-500.0,0.00022256,2]
[311495353,1705164490714,-819.98411467,0.00022256,2]
[311495354,1705164491098,-901.66588533,0.00022256,2]
[311495355,1705164491122,-1098.33411467,0.00022256,2]
[311495356,1705164500116,151.0,0.00022984,7]
[311495357,1705164500214,151.0,0.00023,7]
[311495358,1705164500329,-155.45470079,0.00022255,2]
[311495359,1705164500351,-623.31588533,0.00022256,2]
[311495360,1705164500373,-1221.22941388,0.00022256,2]
[311495361,1705164500493,151.0,0.00023,7]
[311495362,1705164500890,-500.42058612,0.00022256,2]
[311495363,1705164500911,-500.0,0.00022256,2]
[311495364,1705164501175,-500.0,0.00022256,2]
[311495365,1705164501199,-499.57941388,0.00022256,2]
[311495366,1705164501349,-0.42058612,0.00022256,2]
[311495367,1705164501370,-500.0,0.00022256,2]
[311495368,1705164501391,-500.0,0.00022256,2]
[311495369,1705164501412,-500.0,0.00022256,2]
[311495370,1705164501432,-499.57941388,0.00022256,2]
[311495371,1705164501954,-0.42058612,0.00022256,2]
[311495372,1705164501975,-500.0,0.00022256,2]
[311495373,1705164501996,-500.0,0.00022256,2]
[311495374,1705164502016,-500.0,0.00022256,2]
[311495375,1705164502037,-499.57941388,0.00022256,2]
[311495376,1705164502732,-90.80058612,0.00022256,2]
[311495377,1705164502754,-590.38,0.00022256,2]
[311495378,1705164502776,-590.38,0.00022256,2]
[311495379,1705164502797,-500.0,0.00022256,2]
[311495380,1705164502821,-228.43941388,0.00022256,2]
[311495381,1705164512810,-259.81123898,0.00022255,2]
[311495382,1705164512835,-500.0,0.00022255,2]
[311495383,1705164512857,-271.56058612,0.00022256,2]
[311495384,1705164512878,-500.0,0.00022256,2]
[311495385,1705164512897,-468.6281749,0.00022256,2]
[311495386,1705164513190,-31.3718251,0.00022256,2]
[311495387,1705164513212,-500.0,0.00022256,2]
[311495388,1705164513236,-500.0,0.00022256,2]
[311495389,1705164513257,-500.0,0.00022256,2]
[311495390,1705164513279,-468.6281749,0.00022256,2]
[311495391,1705164513545,-31.3718251,0.00022256,2]
[311495392,1705164513567,-1968.6281749,0.00022256,2]
[311495393,1705164514098,-500.0,0.00022255,2]
[311495394,1705164514119,-370.3018251,0.00022256,2]
[311495395,1705164514140,-1129.6981749,0.00022256,2]
[311495396,1705164514953,-1209.2318251,0.00022256,2]
[311495397,1705164515210,-500.0,0.00022256,2]
[311495398,1705164515235,-290.7681749,0.00022256,2]
[311495399,1705164515519,-2000.0,0.00022256,2]
[311495400,1705164516322,635.173694,0.00022984,7]
[311495401,1705164516606,635.173694,0.00023,7]
[311495402,1705164516664,-48.1618251,0.00022256,2]
[311495403,1705164516686,-500.0,0.00022256,2]
[311495404,1705164516707,-500.0,0.00022256,2]
[311495405,1705164516730,-500.0,0.00022256,2]
[311495406,1705164516756,-451.8381749,0.00022256,2]
[311495407,1705164516862,635.173694,0.00023,7]
[311495408,1705164517770,-48.1618251,0.00022256,2]
[311495409,1705164517793,-500.0,0.00022256,2]
[311495410,1705164517815,-500.0,0.00022256,2]
[311495411,1705164517844,-500.0,0.00022256,2]
[311495412,1705164517867,-451.8381749,0.00022256,2]
[311495413,1705164519082,635.173694,0.00022984,7]
[311495414,1705164519426,635.173694,0.00023,7]
[311495415,1705164519680,635.173694,0.00023,7]
[311495416,1705164521981,3186.46864652,0.00021364,2]
[311495417,1705164531694,-500.0,0.00022255,2]
[311495418,1705164531716,-341.0,0.00022255,2]
[311495419,1705164533492,325.456679,0.00022984,7]
[311495420,1705164533737,325.456679,0.00023,7]
[311495421,1705164534001,325.456679,0.00023,7]
[311495422,1705164536775,325.456679,0.00022984,7]
[311495423,1705164537030,419.33476208,0.00021364,2]
[311495424,1705164537065,325.456679,0.00023,7]
[311495425,1705164537389,325.456679,0.00023,7]
[311495426,1705164541750,152.76744101,0.00022156,2]
[311495427,1705164543228,151.0,0.00022984,7]
[311495428,1705164543302,-105.92630179,0.00022255,2]
[311495429,1705164543327,-500.0,0.00022255,2]
[311495430,1705164543353,-500.0,0.00022255,2]
[311495431,1705164543378,-500.0,0.00022255,2]
[311495432,1705164543403,-48.1618251,0.00022256,2]
[311495433,1705164543427,-345.91187311,0.00022256,2]
[311495434,1705164543543,151.0,0.00023,7]
[311495435,1705164543829,238.766114,0.00023,7]
[311495436,1705164543875,-154.08812689,0.00022256,2]
[311495437,1705164543900,-500.0,0.00022256,2]
[311495438,1705164543929,-500.0,0.00022256,2]
[311495439,1705164543952,-500.0,0.00022256,2]
[311495440,1705164543975,-345.91187311,0.00022256,2]
[311495441,1705164544430,-154.08812689,0.00022256,2]
[311495442,1705164544456,-500.0,0.00022256,2]
[311495443,1705164544481,-500.0,0.00022256,2]
[311495444,1705164544506,-500.0,0.00022256,2]
[311495445,1705164544530,-345.91187311,0.00022256,2]
[311495446,1705164544998,-154.08812689,0.00022256,2]
[311495447,1705164545021,-500.0,0.00022256,2]
[311495448,1705164545046,-500.0,0.00022256,2]
[311495449,1705164545071,-500.0,0.00022256,2]
[311495450,1705164545097,-345.91187311,0.00022256,2]
[311495451,1705164545618,-671.16,0.00022255,2]
[311495452,1705164545648,-161.90978195,0.00022256,2]
[311495453,1705164545675,-500.0,0.00022256,2]
[311495454,1705164545701,-500.0,0.00022256,2]
[311495455,1705164545727,-166.93021805,0.00022256,2]
[311495456,1705164546831,-333.06978195,0.00022256,2]
[311495457,1705164546859,-500.0,0.00022256,2]
[311495458,1705164546884,-500.0,0.00022256,2]
[311495459,1705164546907,-500.0,0.00022256,2]
[311495460,1705164546933,-166.93021805,0.00022256,2]
[311495461,1705164548252,-333.06978195,0.00022256,2]
[311495462,1705164548273,-500.0,0.00022256,2]
[311495463,1705164548295,-500.0,0.00022256,2]
[311495464,1705164548317,-500.0,0.00022256,2]
[311495465,1705164548338,-166.93021805,0.00022256,2]
[311495466,1705164548849,252.77449052,0.00022157,2]
[311495467,1705164550121,-333.06978195,0.00022256,2]
[311495468,1705164550143,-500.0,0.00022256,2]
[311495469,1705164550168,-500.0,0.00022256,2]
[311495470,1705164550188,-500.0,0.00022256,2]
[311495471,1705164550210,-166.93021805,0.00022256,2]
[311495472,1705164551214,-992.83578239,0.00022255,2]
[311495473,1705164551235,-333.06978195,0.00022256,2]
[311495474,1705164551256,-500.0,0.00022256,2]
[311495475,1705164551277,-174.09443566,0.00022256,2]
[311495476,1705164552463,-325.90556434,0.00022256,2]
[311495477,1705164552485,-542.34830065,0.00022256,2]
[311495478,1705164552506,-500.0,0.00022256,2]
[311495479,1705164552526,-500.0,0.00022256,2]
[311495480,1705164552546,-131.74613501,0.00022256,2]
[311495481,1705164556329,446.64129223,0.00019807,2]
[311495482,1705164559275,208.779874,0.00022984,7]
[311495483,1705164559590,208.779874,0.00023,7]
[311495484,1705164559897,208.779874,0.00023,7]
[311495485,1705164562068,208.779874,0.00022984,7]
[311495486,1705164562455,208.779874,0.00023,7]
[311495487,1705164562704,208.779874,0.00023,7]
[311495488,1705164567489,250.0,0.00022158,2]
[311495489,1705164568961,235.36,0.00019421,2]
[311495490,1705164569183,235.36,0.00021685,2]
[311495491,1705164569887,484.82,0.00021339,2]
[311495492,1705164571852,-2000.0,0.00022254,2]
[311495493,1705164572393,-2000.0,0.00022254,2]
[311495494,1705164584550,-2000.0,0.00022254,2]
[311495495,1705164598902,577.8909,0.00022156,2]
[311495496,1705164609158,157.2,0.00021314,2]
[311495497,1705164609553,157.2,0.00021527,2]
[311495498,1705164609777,157.2,0.0002174,2]
[311495499,1705164610009,157.2,0.00021953,2]
[311495500,1705164610250,157.2,0.00022167,2]
[311495501,1705164612235,462.35,0.00021314,2]
[311495502,1705164613297,874.43633455,0.00021141,2]
[311495503,1705164628324,-2000.0,0.00022253,2]
[311495504,1705164628840,-1793.35785581,0.00022253,2]
[311495505,1705164628862,-206.64214419,0.00022253,2]
[311495506,1705164629406,-2000.0,0.00022253,2]
[311495507,1705164630015,-2000.0,0.00022253,2]
[311495508,1705164630373,2690.524658,0.00022556,7]
[311495509,1705164630643,2690.524658,0.00022984,7]
[311495510,1705164630744,-2000.0,0.00022253,2]
[311495511,1705164630942,2690.524658,0.00023,7]
[311495512,1705164631220,2690.524658,0.00023,7]
[311495564,1705164631965,-351.48000001,0.00022253,2]
[311495566,1705164631978,-1802.229,0.00022253,2]
[311495569,1705164632022,-2160.2619,0.00022253,2]
[311495571,1705164632034,-5820.52258275,0.00022253,2]
[311495572,1705164632046,-39626.28359022,0.00022253,2]
[311495574,1705164632055,-18196.55827396,0.00022254,2]
[311495575,1705164632064,-2896.49308312,0.00022254,2]
[311495577,1705164632074,-4606.24128518,0.00022255,2]
[311495579,1705164632083,-500.0,0.00022255,2]
[311495580,1705164632092,-500.0,0.00022255,2]
[311495582,1705164632103,-608.96,0.00022255,2]
[311495584,1705164632112,-538.71,0.00022255,2]
[311495585,1705164632121,-647.36,0.00022255,2]
[311495587,1705164632131,-500.0,0.00022255,2]
[311495588,1705164632140,-500.0,0.00022255,2]
[311495590,1705164632150,-500.0,0.00022255,2]
[311495591,1705164632159,-624.21,0.00022255,2]
[311495593,1705164632168,-500.0,0.00022255,2]
[311495595,1705164632177,-500.0,0.00022255,2]
[311495596,1705164632187,-500.0,0.00022255,2]
[311495597,1705164632196,-500.0,0.00022256,2]
[311495598,1705164632205,-500.0,0.00022256,2]
[311495599,1705164632215,-500.0,0.00022256,2]
[311495600,1705164632224,-500.0,0.00022256,2]
[311495601,1705164632234,-500.0,0.00022256,2]
[311495602,1705164632245,-500.0,0.00022256,2]
[311495604,1705164632255,-500.0,0.00022256,2]
[311495606,1705164632265,-503.30796022,0.00022256,2]
[311495608,1705164632274,-541.47371365,0.00022256,2]
[311495610,1705164632283,-500.0,0.00022256,2]
[311495612,1705164632292,-500.0,0.00022256,2]
[311495614,1705164632302,-500.0,0.00022256,2]
[311495617,1705164632311,-500.0,0.00022256,2]
[311495620,1705164632320,-500.0,0.00022256,2]
[311495623,1705164632329,-500.0,0.00022256,2]
[311495626,1705164632339,-500.0,0.00022256,2]
[311495629,1705164632348,-500.0,0.00022256,2]
[311495631,1705164632357,-500.0,0.00022256,2]
[311495633,1705164632369,-500.0,0.00022256,2]
[311495635,1705164632378,-500.0,0.00022256,2]
[311495637,1705164632387,-500.0,0.00022256,2]
[311495639,1705164632396,-500.0,0.00022256,2]
[311495641,1705164632406,-500.0,0.00022256,2]
[311495643,1705164632415,-500.0,0.00022256,2]
[311495645,1705164632424,-500.0,0.00022256,2]
[311495647,1705164632433,-500.0,0.00022256,2]
[311495649,1705164632442,-230.35320607,0.00022256,2]
[311495652,1705164632566,-269.64679393,0.00022256,2]
[311495653,1705164632587,-500.0,0.00022256,2]
[311495654,1705164632607,-500.0,0.00022256,2]
[311495655,1705164632628,-500.0,0.00022256,2]
[311495656,1705164632648,-230.35320607,0.00022256,2]
[311495657,1705164633063,2690.524658,0.00022556,7]
[311495658,1705164633215,-269.64679393,0.00022256,2]
[311495659,1705164633236,-500.0,0.00022256,2]
[311495660,1705164633265,-500.0,0.00022256,2]
[311495661,1705164633288,-500.0,0.00022256,2]
[311495662,1705164633309,-230.35320607,0.00022256,2]
[311495663,1705164633360,2690.524658,0.00022984,7]
[311495664,1705164633604,2690.524658,0.00023,7]
[311495665,1705164633773,-500.0,0.00022255,2]
[311495666,1705164633795,-269.64679393,0.00022256,2]
[311495667,1705164633818,-500.0,0.00022256,2]
[311495668,1705164633839,-500.0,0.00022256,2]
[311495669,1705164633859,-230.35320607,0.00022256,2]
[311495670,1705164633896,2690.524658,0.00023,7]
[311495671,1705164634394,-269.64679393,0.00022256,2]
[311495672,1705164634756,-500.0,0.00022256,2]
[311495673,1705164634776,-500.0,0.00022256,2]
[311495674,1705164634796,-230.36706951,0.00022256,2]
[311495675,1705164634816,-499.98613656,0.00022256,2]
[311495676,1705164635264,-0.01386344,0.00022256,2]
[311495677,1705164635285,-500.0,0.00022256,2]
[311495678,1705164635306,-500.0,0.00022256,2]
[311495679,1705164635327,-500.0,0.00022256,2]
[311495680,1705164635348,-499.98613656,0.00022256,2]
[311495681,1705164637042,-500.0,0.00022255,2]
[311495682,1705164637065,-500.0,0.00022255,2]
[311495683,1705164637087,-1.69742032,0.00022256,2]
[311495684,1705164637108,-500.0,0.00022256,2]
[311495685,1705164637130,-498.30257968,0.00022256,2]
[311495691,1705164637784,-1.69742032,0.00022256,2]
[311495692,1705164637793,-500.0,0.00022256,2]
[311495693,1705164637802,-500.0,0.00022256,2]
[311495694,1705164637811,-500.0,0.00022256,2]
[311495695,1705164637821,-503.81897482,0.00022256,2]
[311495696,1705164637830,-500.0,0.00022256,2]
[311495697,1705164637840,-500.0,0.00022256,2]
[311495698,1705164637849,-500.0,0.00022256,2]
[311495699,1705164637858,-500.0,0.00022256,2]
[311495700,1705164637867,-500.0,0.00022256,2]
[311495701,1705164637877,-500.0,0.00022256,2]
[311495702,1705164637886,-500.0,0.00022256,2]
[311495703,1705164637898,-500.0,0.00022256,2]
[311495704,1705164637907,-500.0,0.00022256,2]
[311495705,1705164637915,-500.0,0.00022256,2]
[311495706,1705164637925,-500.0,0.00022256,2]
[311495707,1705164637933,-599.34519011,0.00022256,2]
[311495708,1705164637944,-500.0,0.00022256,2]
[311495709,1705164637953,-500.0,0.00022256,2]
[311495710,1705164637962,-500.0,0.00022256,2]
[311495711,1705164637971,-500.0,0.00022256,2]
[311495712,1705164637981,-500.0,0.00022256,2]
[311495713,1705164637991,-500.0,0.00022256,2]
[311495714,1705164638000,-500.0,0.00022256,2]
[311495715,1705164638010,-500.0,0.00022256,2]
[311495716,1705164638019,-510.45537448,0.00022256,2]
[311495717,1705164638027,-500.0,0.00022256,2]
[311495718,1705164638036,-500.0,0.00022256,2]
[311495719,1705164638045,-500.0,0.00022256,2]
[311495720,1705164638054,-500.0,0.00022256,2]
[311495721,1705164638063,-500.0,0.00022256,2]
[311495722,1705164638073,-500.0,0.00022256,2]
[311495723,1705164638082,-500.0,0.00022256,2]
[311495724,1705164638091,-500.0,0.00022256,2]
[311495725,1705164638100,-500.0,0.00022256,2]
[311495726,1705164638110,-500.0,0.00022256,2]
[311495727,1705164638119,-500.0,0.00022256,2]
[311495728,1705164638128,-500.0,0.00022256,2]
[311495729,1705164638137,-500.0,0.00022256,2]
[311495730,1705164638147,-500.0,0.00022256,2]
[311495731,1705164638157,-500.0,0.00022256,2]
[311495732,1705164638166,-500.0,0.00022256,2]
[311495733,1705164638175,-500.0,0.00022256,2]
[311495734,1705164638184,-500.0,0.00022256,2]
[311495735,1705164638194,-500.0,0.00022256,2]
[311495736,1705164638203,-500.0,0.00022256,2]
[311495737,1705164638212,-369.87831028,0.00022256,2]
[311495738,1705164638241,-130.12168972,0.00022256,2]
[311495739,1705164638250,-500.0,0.00022256,2]
[311495740,1705164638259,-500.0,0.00022256,2]
[311495741,1705164638268,-504.18947154,0.00022256,2]
[311495742,1705164638278,-500.0,0.00022256,2]
[311495743,1705164638287,-500.0,0.00022256,2]
[311495744,1705164638296,-500.0,0.00022256,2]
[311495745,1705164638306,-500.0,0.00022256,2]
[311495746,1705164638315,-500.0,0.00022256,2]
[311495747,1705164638325,-515.27,0.00022256,2]
[311495749,1705164638334,-500.0,0.00022256,2]
[311495750,1705164638343,-500.0,0.00022256,2]
[311495751,1705164638352,-500.0,0.00022256,2]
[311495752,1705164638362,-500.0,0.00022256,2]
[311495753,1705164638371,-500.0,0.00022256,2]
[311495754,1705164638382,-500.0,0.00022256,2]
[311495755,1705164638392,-500.0,0.00022256,2]
[311495756,1705164638402,-500.0,0.00022256,2]
[311495757,1705164638412,-500.0,0.00022256,2]
[311495758,1705164638422,-500.0,0.00022256,2]
[311495759,1705164638431,-500.0,0.00022256,2]
[311495760,1705164638441,-503.10677959,0.00022256,2]
[311495761,1705164638450,-500.0,0.00022256,2]
[311495762,1705164638458,-500.0,0.00022256,2]
[311495763,1705164638467,-500.0,0.00022256,2]
[311495764,1705164638476,-500.0,0.00022256,2]
[311495765,1705164638486,-500.0,0.00022256,2]
[311495766,1705164638496,-500.0,0.00022256,2]
[311495767,1705164638505,-499.72577242,0.00022256,2]
[311495768,1705164638514,-500.0,0.00022256,2]
[311495769,1705164638523,-500.0,0.00022256,2]
[311495770,1705164638532,-500.0,0.00022256,2]
[311495771,1705164638542,-500.0,0.00022256,2]
[311495772,1705164638551,-500.0,0.00022256,2]
[311495773,1705164638560,-500.0,0.00022256,2]
[311495774,1705164638569,-500.0,0.00022256,2]
[311495775,1705164638578,-500.0,0.00022256,2]
[311495776,1705164638587,-500.0,0.00022256,2]
[311495777,1705164638597,-500.0,0.00022256,2]
[311495778,1705164638606,-500.0,0.00022256,2]
[311495779,1705164638615,-985.44,0.00022256,2]
[311495780,1705164638624,-985.44,0.00022256,2]
[311495781,1705164638633,-985.44,0.00022256,2]
[311495782,1705164638642,-500.0,0.00022256,2]
[311495783,1705164638652,-500.0,0.00022256,2]
[311495784,1705164638661,-525.34283133,0.00022256,2]
[311495785,1705164638670,-500.0,0.00022256,2]
[311495786,1705164638679,-508.5931803,0.00022256,2]
[311495787,1705164638743,-500.0,0.00022256,2]
[311495788,1705164638753,-500.0,0.00022256,2]
[311495789,1705164638762,-501.76568296,0.00022256,2]
[311495790,1705164638771,-500.0,0.00022256,2]
[311495791,1705164638780,-500.0,0.00022256,2]
[311495792,1705164638789,-500.0,0.00022256,2]
[311495793,1705164638798,-500.0,0.00022256,2]
[311495794,1705164638807,-500.0,0.00022256,2]
[311495795,1705164638816,-500.0,0.00022256,2]
[311495796,1705164638825,-500.0,0.00022256,2]
[311495797,1705164638836,-500.0,0.00022256,2]
[311495798,1705164638846,-500.0,0.00022256,2]
[311495799,1705164638855,-500.0,0.00022256,2]
[311495800,1705164638864,-500.0,0.00022256,2]
[311495801,1705164638874,-500.0,0.00022256,2]
[311495802,1705164638884,-500.0,0.00022256,2]
[311495803,1705164638895,-500.0,0.00022256,2]
[311495804,1705164638905,-500.0,0.00022256,2]
[311495805,1705164638914,-500.0,0.00022256,2]
[311495806,1705164638924,-500.0,0.00022256,2]
[311495807,1705164638934,-500.0,0.00022256,2]
[311495808,1705164638944,-500.0,0.00022256,2]
[311495809,1705164638954,-500.0,0.00022256,2]
[311495810,1705164638964,-1089.66,0.00022256,2]
[311495811,1705164638973,-500.0,0.00022256,2]
[311495812,1705164638983,-1089.66,0.00022256,2]
[311495813,1705164638993,-1089.66,0.00022256,2]
[311495814,1705164639002,-500.0,0.00022256,2]
[311495815,1705164639011,-500.0,0.00022256,2]
[311495816,1705164639020,-3481.8,0.00022256,2]
[311495817,1705164639030,-3481.8,0.00022256,2]
[311495818,1705164639039,-500.0,0.00022256,2]
[311495819,1705164639048,-3481.8,0.00022256,2]
[311495820,1705164639057,-506.34798819,0.00022256,2]
[311495821,1705164639067,-500.0,0.00022256,2]
[311495822,1705164639076,-424.96601215,0.00022256,2]
[311495823,1705164639085,-507.51271747,0.00022256,2]
[311495824,1705164639094,-500.0,0.00022256,2]
[311495825,1705164639103,-2332.4,0.00022256,2]
[311495826,1705164639113,-500.0,0.00022256,2]
[311495827,1705164639122,-500.0,0.00022256,2]
[311495828,1705164639131,-500.0,0.00022256,2]
[311495829,1705164639141,-500.0,0.00022256,2]
[311495830,1705164639150,-500.0,0.00022256,2]
[311495831,1705164639159,-500.0,0.00022256,2]
[311495832,1705164639168,-500.0,0.00022256,2]
[311495833,1705164639177,-500.0,0.00022256,2]
[311495834,1705164639187,-500.0,0.00022256,2]
[311495835,1705164639196,-500.0,0.00022256,2]
[311495836,1705164639205,-500.0,0.00022256,2]
[311495837,1705164639215,-500.0,0.00022256,2]
[311495838,1705164639224,-500.0,0.00022256,2]
[311495839,1705164639233,-500.0,0.00022256,2]
[311495840,1705164639243,-500.0,0.00022256,2]
[311495841,1705164639253,-500.0,0.00022256,2]
[311495842,1705164639262,-500.0,0.00022256,2]
[311495843,1705164639271,-500.0,0.00022256,2]
[311495844,1705164639281,-500.0,0.00022256,2]
[311495845,1705164639289,-500.0,0.00022256,2]
[311495846,1705164639298,-500.0,0.00022256,2]
[311495847,1705164639307,-500.0,0.00022256,2]
[311495848,1705164639317,-500.0,0.00022256,2]
[311495849,1705164639328,-500.0,0.00022256,2]
[311495850,1705164639338,-500.0,0.00022256,2]
[311495851,1705164639348,-500.0,0.00022256,2]
[311495852,1705164639360,-500.0,0.00022256,2]
[311495853,1705164639370,-500.0,0.00022256,2]
[311495854,1705164639381,-500.0,0.00022256,2]
[311495855,1705164639391,-500.0,0.00022256,2]
[311495856,1705164639402,-500.0,0.00022256,2]
[311495857,1705164639412,-500.0,0.00022256,2]
[311495858,1705164639422,-500.0,0.00022256,2]
[311495859,1705164639432,-726.13,0.00022256,2]
[311495860,1705164639442,-726.13,0.00022256,2]
[311495861,1705164639453,-500.0,0.00022256,2]
[311495862,1705164639464,-726.13,0.00022256,2]
[311495863,1705164639475,-500.0,0.00022256,2]
[311495864,1705164639486,-500.0,0.00022256,2]
[311495865,1705164639498,-500.0,0.00022256,2]
[311495866,1705164639510,-500.0,0.00022256,2]
[311495867,1705164639521,-500.0,0.00022256,2]
[311495868,1705164639532,-500.0,0.00022256,2]
[311495869,1705164639542,-500.0,0.00022256,2]
[311495870,1705164639552,-504.29374319,0.00022256,2]
[311495871,1705164639562,-510.24414482,0.00022256,2]
[311495872,1705164639572,-500.0,0.00022256,2]
[311495873,1705164639582,-500.0,0.00022256,2]
[311495874,1705164639591,-542.31725596,0.00022256,2]
[311495876,1705164639601,-645.46714405,0.00022256,2]
[311495877,1705164639610,-500.0,0.00022256,2]
[311495879,1705164639619,-500.0,0.00022256,2]
[311495881,1705164639629,-500.0,0.00022256,2]
[311495882,1705164639638,-500.0,0.00022256,2]
[311495883,1705164639648,-500.0,0.00022256,2]
[311495884,1705164639658,-500.0,0.00022256,2]
[311495885,1705164639667,-500.0,0.00022256,2]
[311495886,1705164639677,-500.0,0.00022256,2]
[311495887,1705164639687,-500.0,0.00022256,2]
[311495888,1705164639696,-500.0,0.00022256,2]
[311495889,1705164639705,-500.0,0.00022256,2]
[311495890,1705164639715,-500.0,0.00022256,2]
[311495891,1705164639724,-500.0,0.00022256,2]
[311495892,1705164639733,-500.0,0.00022256,2]
[311495893,1705164639744,-500.0,0.00022256,2]
[311495894,1705164639753,-500.0,0.00022256,2]
[311495895,1705164639763,-191.7,0.00022256,2]
[311495896,1705164639773,-500.0,0.00022256,2]
[311495897,1705164639782,-500.0,0.00022256,2]
[311495898,1705164639791,-500.0,0.00022256,2]
[311495899,1705164639801,-500.0,0.00022256,2]